bitfinex/quotes_ETHUSD_20240927
["timestamp","ask_amount","ask_price","bid_price","bid_amount"]
[1727459240916,0.7918,2693.9,2693.6,3.71249]
[1727459241114,4.52477,2694.0,2693.6,3.71249]
[1727459241284,0.8128,2694.0,2693.6,3.71249]
[1727459241482,3.71162,2694.3,2693.8,7.06580592]
[1727459241713,0.8128,2695.4,2694.2,3.35368592]
[1727459241951,4.52347,2695.0,2694.7,3.35368592]
[1727459242249,4.52347,2695.0,2694.3,6.35368592]
[1727459242250,3.71085,2694.8,2694.3,6.35368592]
[1727459242535,3.71085,2694.8,2694.2,6.71157]
[1727459242723,4.52343,2695.0,2694.3,5.08921459]
[1727459242921,4.52343,2695.0,2694.3,8.44290051]
[1727459243137,4.52343,2695.0,2694.3,3.35368592]
[1727459243446,0.8128,2694.7,2694.1,3.71173]
[1727459244051,0.8128,2694.7,2694.3,7.06519592]
[1727459244202,3.0,2695.7,2694.3,10.77662592]
[1727459244203,0.786,2694.9,2694.3,10.77662592]
[1727459244403,4.49671,2694.9,2694.3,7.06511592]
[1727459244600,0.786,2694.9,2694.3,10.77656592]
[1727459245409,4.946385,2694.9,2694.1,7.42345]
[1727459245724,3.71114,2694.6,2694.0,7.06554592]
[1727459246444,7.42186,2694.8,2694.1,3.71167]
[1727459246604,3.7109,2694.8,2694.0,5.38791015]
[1727459246939,3.7109,2694.8,2694.2,3.7116]
[1727459247300,3.7109,2694.8,2694.0,9.09978015]
[1727459247501,3.71102,2694.7,2694.0,12.81160015]
[1727459247742,3.7109,2694.8,2694.1,3.71179]
[1727459247906,7.42187,2694.8,2694.1,4.72244879]
[1727459248100,4.49672,2694.9,2694.3,3.71151]
[1727459248340,4.49672,2694.9,2694.3,4.454039]
[1727459248534,4.49672,2694.9,2694.3,3.71151]
[1727459249375,3.71086,2694.8,2694.3,3.71151]
[1727459249664,4.49674,2694.9,2694.3,3.71146]
[1727459249821,4.49674,2694.9,2694.3,7.42292]
[1727459250642,0.786,2694.9,2694.5,3.71113]
[1727459251157,0.8075,2695.1,2694.7,3.71098]
[1727459251323,0.8075,2695.1,2694.7,3.71092]
[1727459251519,0.8075,2695.4,2694.9,3.71063]
[1727459251742,3.70938,2695.9,2695.1,3.71035]
[1727459251743,0.8075,2695.6,2695.1,3.71035]
[1727459251948,0.8075,2695.6,2695.2,3.71029]
[1727459252258,0.8075,2695.6,2695.3,3.71014]
[1727459252471,3.70941,2695.9,2695.3,8.12657259]
[1727459252619,3.70941,2695.9,2695.3,4.41643259]
[1727459253263,3.70966,2695.7,2695.1,3.71035]
[1727459253432,3.70941,2695.9,2695.1,7.06403592]
[1727459253635,7.41886,2695.9,2695.3,3.71013]
[1727459253863,3.70941,2695.9,2695.3,3.71013]
[1727459254040,3.70949,2695.8,2695.3,4.41651159]
[1727459254222,3.70949,2695.8,2695.3,3.71013]
[1727459254877,3.70968,2695.7,2695.1,3.71033]
[1727459255176,0.8133,2695.6,2695.0,3.71044]
[1727459255371,4.52305,2695.6,2695.0,4.452561]
[1727459255770,0.8133,2695.6,2695.0,8.163041]
[1727459256131,0.8133,2695.6,2695.1,3.71042]
[1727459256328,0.8133,2695.6,2695.1,4.5267181]
[1727459257080,4.52305,2695.6,2695.1,4.5267181]
[1727459257943,4.52305,2695.6,2695.1,4.5267281]
[1727459258479,4.52305,2695.6,2694.7,3.59266964]
[1727459258480,3.71011,2695.4,2694.8,3.7108]
[1727459258694,3.71011,2695.4,2694.5,10.70368592]
[1727459258695,0.794,2695.1,2694.5,7.35]
[1727459258894,4.50451,2695.1,2694.5,11.06118]
[1727459259042,0.794,2695.1,2694.6,3.71111]
[1727459259242,0.794,2695.1,2694.7,3.71097]
[1727459259882,0.794,2695.1,2694.6,3.71103]
[1727459260044,0.794,2695.1,2694.7,3.71093]
[1727459261587,0.794,2695.1,2694.6,1.74147159]
[1727459261943,0.794,2695.1,2694.6,4.74147159]
[1727459262686,0.794,2695.1,2694.8,3.71084]
[1727459263675,0.794,2695.1,2694.7,3.71093]
[1727459264063,0.794,2695.1,2694.6,3.0]
[1727459264262,0.794,2695.1,2694.6,3.71108]
[1727459265588,0.794,2695.1,2694.5,3.71114]
[1727459265885,0.794,2695.1,2694.8,3.71073]
[1727459266862,4.49596,2695.8,2695.3,3.7101]
[1727459267598,4.49596,2695.8,2695.1,7.42078]
[1727459267599,3.70963,2695.7,2695.1,7.42078]
[1727459267905,3.70976,2695.6,2695.0,3.71057]
[1727459268201,0.7864,2695.5,2695.1,7.4207]
[1727459268407,0.7864,2695.5,2695.2,3.71028]
[1727459268910,0.7864,2695.5,2695.2,4.452342]
[1727459269063,0.7864,2695.5,2695.3,3.71016]
[1727459270399,0.7864,2695.5,2695.2,3.71028]
[1727459270562,0.7864,2695.5,2695.0,3.71047]
[1727459270764,0.7864,2695.5,2695.1,3.71037]
[1727459271774,0.7864,2695.5,2695.2,7.4205]
[1727459272077,3.70942,2695.9,2695.2,4.45226]
[1727459272278,0.8295,2695.8,2695.4,7.41989]
[1727459272590,0.8295,2695.8,2695.4,3.70993]
[1727459273906,0.8295,2695.8,2695.4,7.41986]
[1727459274063,0.8295,2695.8,2695.4,4.451916]
[1727459275275,0.8295,2695.8,2695.3,3.71014]
[1727459275894,4.53897,2695.8,2695.3,3.71014]
[1727459276419,0.8295,2695.8,2695.1,3.35368592]
[1727459276569,3.70962,2695.7,2695.2,7.4204]
[1727459277004,0.8295,2695.8,2695.2,3.71018]
[1727459277310,4.53897,2695.8,2695.3,3.71014]
[1727459278507,5.363808,2695.8,2695.2,3.71018]
[1727459278804,4.53897,2695.8,2695.3,3.71014]
[1727459279724,0.811,2695.5,2694.9,7.792288]
[1727459279926,4.52098,2695.5,2695.0,3.71057]
[1727459280433,5.344062,2695.5,2695.0,3.71057]
[1727459281132,0.811,2695.5,2695.1,3.71043]
[1727459282237,0.811,2695.5,2695.0,3.71048]
[1727459282238,3.71004,2695.4,2695.0,3.71048]
[1727459282438,0.811,2695.5,2695.1,3.71032]
[1727459285811,0.811,2695.5,2695.0,3.71056]
[1727459286010,3.71004,2695.4,2695.0,3.71056]
[1727459286248,4.521,2695.5,2695.0,3.71056]
[1727459286547,4.521,2695.5,2695.0,3.71049]
[1727459286746,0.8117,2695.2,2694.8,3.71076]
[1727459287338,0.8117,2695.2,2694.8,7.42152]
[1727459287539,0.8117,2695.2,2694.8,3.71076]
[1727459287706,0.8117,2695.2,2695.0,3.71047]
[1727459287907,4.50784,2695.8,2695.1,3.71043]
[1727459288207,4.50784,2695.8,2695.3,3.71014]
[1727459288425,4.50784,2695.8,2695.2,3.71028]
[1727459288727,4.51781,2695.7,2695.2,3.71028]
[1727459289315,0.8082,2695.7,2695.3,3.71008]
[1727459290012,0.8082,2695.7,2695.3,3.71015]
[1727459290857,0.8082,2695.7,2695.5,3.70984]
[1727459292519,0.8082,2695.7,2695.6,3.70974]
[1727459292761,3.7091,2696.1,2695.6,3.70962]
[1727459292762,0.7582,2696.1,2695.6,3.70962]
[1727459293165,0.7582,2696.1,2695.7,3.7096]
[1727459293474,0.7582,2696.1,2695.6,3.70974]
[1727459293475,4.46736,2696.1,2695.6,3.70974]
[1727459293763,4.46736,2696.1,2695.7,0.075]
[1727459295163,0.7582,2696.1,2695.8,3.70945]
[1727459295554,0.7582,2696.1,2695.8,4.458819]
[1727459296054,0.7582,2696.1,2695.9,3.70933]
[1727459296437,0.7582,2696.1,2695.8,4.458819]
[1727459297264,0.7582,2696.1,2695.8,4.458809]
[1727459297475,0.7582,2696.1,2695.7,0.075]
[1727459297765,0.7758,2695.3,2694.8,3.71077]
[1727459297951,0.448592,2695.2,2694.8,3.71076]
[1727459298221,0.7758,2695.3,2694.9,3.71064]
[1727459298559,4.48596,2695.3,2694.8,3.71076]
[1727459299174,0.7758,2695.3,2695.0,3.71055]
[1727459299354,0.7758,2695.3,2694.8,3.77053028]
[1727459299560,0.7758,2695.6,2695.0,3.71056]
[1727459299761,0.7758,2695.6,2695.1,3.71037]
[1727459299955,0.448543,2695.5,2695.1,3.71037]
[1727459300158,0.448543,2695.5,2695.0,3.71056]
[1727459300333,4.158513,2695.5,2695.0,3.71056]
[1727459301262,4.158513,2695.5,2695.1,3.71036]
[1727459301263,0.448543,2695.5,2695.1,3.71036]
[1727459301477,4.48556,2695.6,2695.1,3.7103]
[1727459301842,0.7758,2695.6,2695.2,0.075]
[1727459302053,0.7758,2695.6,2695.3,3.71005]
[1727459302258,3.70913,2696.1,2695.6,3.70973]
[1727459302658,3.70913,2696.1,2695.6,3.70967]
[1727459303044,3.70913,2696.1,2695.7,3.70959]
[1727459303683,0.370881,2696.2,2695.7,3.70959]
[1727459303986,0.370881,2696.2,2695.5,3.35368592]
[1727459304189,3.35368592,2696.9,2695.5,3.35368592]
[1727459304190,3.70866,2696.4,2696.0,3.70918]
[1727459304942,3.70866,2696.4,2695.9,3.70924]
[1727459304943,3.70838,2696.6,2696.1,3.78405]
[1727459305143,4.079408,2696.5,2696.1,0.075]
[1727459305985,4.079408,2696.5,2696.1,3.78405]
[1727459306346,7.788018,2696.5,2696.1,0.075]
[1727459306580,3.70865,2696.4,2695.9,3.78422]
[1727459307985,3.70879,2696.3,2695.9,3.78422]
[1727459309787,0.4079408,2696.4,2695.9,3.78422]
[1727459309974,0.4079408,2696.4,2696.0,3.70919]
[1727459310587,4.1166008,2696.4,2695.9,0.075]
[1727459310745,4.1166008,2696.4,2696.0,3.70919]
[1727459310945,4.1166008,2696.4,2695.9,3.78432]
[1727459311586,3.70879,2696.3,2695.9,3.78432]
[1727459311783,4.49132008,2696.3,2695.9,3.78432]
[1727459312596,4.49132008,2696.3,2695.9,3.70932]
[1727459313582,3.70912,2696.1,2695.6,3.78468]
[1727459313902,3.70885,2696.3,2695.8,3.70939]
[1727459314182,3.70885,2696.3,2695.9,3.70932]
[1727459314344,4.530208,2696.3,2695.9,3.70932]
[1727459314551,4.50473,2696.4,2696.0,3.70912]
[1727459314745,4.50473,2696.4,2695.7,3.70949]
[1727459314984,4.50473,2696.4,2695.9,3.70933]
[1727459315283,4.955203,2696.4,2695.9,3.70933]
[1727459315581,4.53455,2696.6,2696.1,3.70893]
[1727459315788,4.53455,2696.6,2696.1,3.78393]
[1727459315942,0.453455,2696.5,2696.1,0.075]
[1727459316148,4.162025,2696.5,2696.1,0.075]
[1727459317301,0.453455,2696.5,2696.1,3.78403]
[1727459317598,8.24303,2696.6,2696.1,3.78405]
[1727459317801,3.70867,2696.4,2696.0,3.70919]
[1727459318157,3.70867,2696.4,2695.8,3.78439]
[1727459318703,3.70879,2696.3,2695.8,0.075]
[1727459318869,3.70913,2696.1,2695.6,3.70962]
[1727459319199,3.70925,2696.0,2695.6,3.70962]
[1727459320088,3.70925,2696.0,2695.5,3.70987]
[1727459320299,0.370925,2695.9,2695.6,3.70963]
[1727459320582,0.7557,2696.4,2696.0,3.70917]
[1727459321070,4.46436,2696.4,2696.0,3.70917]
[1727459321397,0.446436,2696.3,2696.0,3.70914]
[1727459322190,3.70833,2696.7,2695.8,3.70938]
[1727459322191,0.7557,2696.6,2696.2,3.70883]
[1727459322359,0.7557,2696.6,2696.2,3.70885]
[1727459322756,3.70832,2696.7,2696.2,3.78385]
[1727459323062,0.817208,2696.7,2696.4,3.70858]
[1727459323393,0.7557,2696.8,2696.4,3.70858]
[1727459323594,0.7557,2696.8,2696.2,7.49264]
[1727459323897,3.70825,2696.7,2696.2,7.49264]
[1727459324198,4.46381,2696.8,2696.3,3.70878]
[1727459324398,4.46381,2696.8,2696.4,3.70859]
[1727459324399,0.7557,2696.8,2696.4,3.70859]
[1727459324602,4.46387,2696.8,2696.3,3.70878]
[1727459325580,3.70824,2696.7,2696.3,3.70878]
[1727459325787,0.7557,2696.8,2696.5,3.7085]
[1727459326102,4.52693,2697.0,2696.5,3.7085]
[1727459326399,4.52693,2697.0,2696.5,7.41686]
[1727459326603,4.52693,2697.0,2696.5,3.70843]
[1727459327006,4.52693,2697.0,2696.3,3.70868]
[1727459327007,3.70796,2696.9,2696.3,3.70868]
[1727459327171,3.7081,2696.8,2696.3,3.70868]
[1727459327710,0.7594,2696.7,2696.0,3.70914]
[1727459328004,3.70872,2696.4,2696.0,3.70919]
[1727459328333,3.70852,2696.5,2696.0,3.70913]
[1727459328600,4.46769,2696.7,2696.2,3.70883]
[1727459329097,4.46765,2696.7,2696.2,7.41768]
[1727459329594,4.46765,2696.7,2696.3,3.70878]
[1727459329800,0.7594,2696.7,2696.3,3.70878]
[1727459330110,0.7594,2696.7,2696.2,3.70883]
[1727459330262,0.7594,2696.7,2696.4,3.70863]
[1727459331204,3.70804,2696.9,2696.4,3.70863]
[1727459331369,4.52454,2696.9,2696.4,7.41717]
[1727459331570,3.70811,2696.8,2696.4,3.70854]
[1727459332415,0.8165,2696.9,2696.5,3.70843]
[1727459333305,4.48303,2697.0,2696.5,3.70843]
[1727459333670,3.70783,2697.0,2696.5,3.70843]
[1727459333893,0.819082,2697.0,2696.6,3.70832]
[1727459334096,3.70782,2697.0,2696.6,3.70832]
[1727459334272,0.7669,2697.3,2696.4,3.70861]
[1727459334479,0.7669,2697.3,2696.9,3.70787]
[1727459335206,0.7669,2697.3,2696.9,3.70795]
[1727459335207,4.47431,2697.3,2696.9,3.70795]
[1727459335826,4.47431,2697.3,2696.6,3.7083]
[1727459335827,3.70778,2697.1,2696.6,3.7083]
[1727459336198,0.8086,2697.0,2696.6,3.7083]
[1727459336397,4.154981,2697.2,2696.7,3.70816]
[1727459337298,4.154981,2697.2,2696.6,3.7083]
[1727459337498,0.4963581,2697.1,2696.6,3.70827]
[1727459337743,3.70755,2697.2,2696.7,3.70814]
[1727459339198,4.51601,2697.3,2696.8,3.70803]
[1727459339606,0.8086,2697.3,2696.8,3.70803]
[1727459339839,3.70755,2697.2,2696.8,3.70803]
[1727459340214,3.70755,2697.2,2696.7,3.70822]
[1727459340414,3.70769,2697.1,2696.7,3.70822]
[1727459340627,3.70785,2697.0,2696.5,3.7084]
[1727459340837,3.70831,2696.7,2696.2,3.78385]
[1727459341142,7.41662,2696.7,2696.2,3.70885]
[1727459341440,3.70831,2696.7,2696.2,3.70885]
[1727459341644,3.70837,2696.6,2696.1,3.70905]
[1727459341851,3.35368592,2697.0,2696.0,3.70909]
[1727459341852,4.46711,2696.5,2696.0,3.70909]
[1727459342054,4.46711,2696.5,2695.9,3.70924]
[1727459342208,4.46711,2696.5,2696.1,3.70906]
[1727459342811,0.7586,2696.5,2696.1,3.70906]
[1727459343044,4.46714,2696.5,2696.1,3.70906]
[1727459344348,0.7586,2696.5,2696.1,3.70906]
[1727459344952,0.7586,2696.5,2695.9,3.70923]
[1727459344953,1.205285,2696.5,2695.9,3.70923]
[1727459345264,3.35368592,2696.2,2695.5,3.70978]
[1727459345411,1.14616859,2696.1,2695.5,3.70978]
[1727459345608,4.85522859,2696.1,2695.5,3.70978]
[1727459345813,0.8108,2696.1,2695.5,3.70978]
[1727459346013,0.8108,2696.1,2695.6,3.70972]
[1727459347516,4.51987,2696.1,2695.5,3.70985]
[1727459347757,0.822887,2696.0,2695.5,3.70985]
[1727459348953,0.822887,2696.0,2695.4,3.70989]
[1727459348954,4.53064,2695.9,2695.4,3.70989]
[1727459349565,4.53064,2695.9,2695.2,7.42038]
[1727459349857,4.53064,2695.9,2695.3,3.71015]
[1727459350031,0.8213,2695.9,2695.4,3.70996]
[1727459352221,0.8213,2695.9,2695.4,7.41989]
[1727459352538,0.8213,2695.9,2695.4,7.41985]
[1727459352755,0.8213,2695.9,2695.5,3.7098]
[1727459352932,0.8213,2695.9,2695.4,3.70992]
[1727459353135,0.8213,2695.9,2695.4,7.41983]
[1727459353320,0.8213,2695.9,2695.4,3.70991]
[1727459354782,1.7275477,2695.9,2695.4,3.70991]
[1727459355957,1.7275477,2695.9,2695.4,7.41986]
[1727459357842,1.7275477,2695.9,2695.4,3.70991]
[1727459358042,1.7275477,2695.9,2695.4,7.41986]
[1727459358481,5.4369877,2695.9,2695.4,3.70991]
[1727459358773,4.53074,2695.9,2695.4,3.70991]
[1727459359156,0.7566,2696.2,2695.0,3.71047]
[1727459359382,0.7566,2695.6,2695.1,3.71035]
[1727459359562,0.7566,2695.6,2695.0,3.71047]
[1727459360280,0.7566,2695.6,2695.2,3.71019]
[1727459361094,0.7566,2695.6,2695.5,3.70988]
[1727459361382,0.7845,2696.0,2695.6,3.70974]
[1727459362377,0.449362,2695.9,2695.6,3.70974]
[1727459363162,0.449362,2695.9,2695.5,3.70986]
[1727459365505,0.449362,2695.9,2695.2,3.35368592]
[1727459365506,4.158722,2695.9,2695.2,7.06388592]
[1727459365663,4.54275,2695.8,2695.3,3.71015]
[1727459366088,0.8332,2695.8,2695.5,7.41961]
[1727459366681,0.8332,2695.8,2695.5,3.70977]
[1727459367387,0.8332,2695.8,2695.6,3.70974]
[1727459367801,0.8332,2695.8,2695.5,3.70987]
[1727459372718,0.8332,2695.8,2695.4,3.71]
[1727459377903,3.70921,2696.0,2694.9,14.41431592]
[1727459377904,3.71025,2695.3,2694.9,7.35]
[1727459378110,0.7686,2695.2,2694.9,11.0607]
[1727459378509,0.7686,2695.2,2695.0,3.71056]
[1727459378714,0.7686,2695.2,2694.9,7.35]
[1727459378888,4.47892,2695.2,2694.9,7.35]
[1727459379222,0.7686,2695.2,2694.9,7.35]
[1727459379586,0.7686,2695.2,2694.9,11.0607]
[1727459380391,0.7686,2695.2,2695.0,3.71057]
[1727459380700,0.7686,2695.2,2695.0,3.71044]
[1727459380901,0.7686,2695.2,2695.0,7.42091]
[1727459381219,0.7686,2695.2,2695.0,3.71044]
[1727459381525,0.7686,2695.2,2694.5,3.43190199]
[1727459381526,0.8187,2695.0,2694.3,0.075]
[1727459381693,0.45292,2694.9,2694.6,3.71102]
[1727459381888,0.8187,2695.0,2694.6,3.71102]
[1727459382527,3.7105,2695.1,2694.3,0.075]
[1727459382528,3.71091,2694.8,2694.3,3.71145]
[1727459382703,3.71091,2694.8,2694.4,3.71139]
[1727459382704,0.8187,2694.7,2694.4,3.71139]
[1727459386485,0.8187,2694.7,2694.5,3.71125]
[1727459386731,7.06710199,2695.3,2694.5,3.71126]
[1727459386732,4.47225,2695.0,2694.5,3.71126]
[1727459386900,3.71071,2694.9,2694.5,3.71126]
[1727459387099,3.71071,2694.9,2694.3,3.71143]
[1727459387100,0.7616,2694.8,2694.4,3.71138]
[1727459387625,0.7616,2694.5,2694.1,3.71171]
[1727459387839,0.7616,2694.5,2694.2,3.71165]
[1727459387995,0.7616,2694.5,2694.1,3.71171]
[1727459388820,0.7616,2694.5,2694.1,7.42345]
[1727459389017,0.7616,2694.5,2694.1,3.71171]
[1727459389193,0.7616,2694.5,2694.1,3.7117]
[1727459389534,0.7616,2694.5,2694.2,3.71161]
[1727459390226,0.7616,2694.5,2694.2,3.71166]
[1727459390433,0.7975,2694.9,2694.2,7.96013032]
[1727459390633,0.7975,2694.9,2694.6,3.71102]
[1727459390795,0.7975,2694.9,2694.7,3.71098]
[1727459393151,0.7975,2694.9,2694.6,3.71112]
[1727459395469,1.248295,2694.9,2694.4,3.71128]
[1727459395651,4.50827,2694.9,2694.4,3.71128]
[1727459396443,4.50827,2694.9,2694.4,7.42261]
[1727459398471,4.50827,2694.9,2694.5,3.71124]
[1727459398828,4.50827,2694.9,2694.4,3.71128]
[1727459399030,0.821896,2694.8,2694.4,3.71128]
[1727459399269,4.50827,2694.9,2694.4,3.71128]
[1727459400358,0.7975,2694.9,2694.5,3.71124]
[1727459402272,4.50826,2694.9,2694.5,3.71124]
[1727459402448,0.82189,2694.8,2694.5,3.71124]
[1727459403663,0.82189,2694.8,2694.6,3.71111]
[1727459403970,0.6213,2694.9,2694.6,3.71111]
[1727459406390,0.6213,2694.9,2694.4,3.71138]
[1727459406391,0.6213,2694.9,2694.5,3.71125]
[1727459408289,0.6213,2694.9,2694.6,3.71112]
[1727459409174,0.6213,2694.9,2694.6,0.74225]
[1727459409356,4.50737,2695.3,2694.7,3.71093]
[1727459409548,4.50737,2695.3,2694.8,3.71078]
[1727459409752,0.7972,2695.3,2694.8,0.32541717]
[1727459410051,0.7972,2695.3,2695.1,3.71037]
[1727459410250,0.7972,2695.3,2695.1,3.71034]
[1727459410933,0.7972,2695.3,2695.2,3.71029]
[1727459411051,0.7972,2695.3,2695.0,3.71048]
[1727459411385,0.7972,2695.3,2695.1,3.71036]
[1727459413194,3.7092,2696.0,2695.4,3.70989]
[1727459413195,3.70926,2696.0,2695.4,3.70989]
[1727459413409,0.8267,2695.9,2695.6,3.70968]
[1727459414051,0.8267,2695.9,2695.4,7.41977]
[1727459414249,0.8267,2695.9,2695.1,1.03010719]
[1727459414250,3.70963,2695.7,2695.1,1.03010719]
[1727459414485,0.7835,2695.6,2695.2,3.71022]
[1727459414697,0.7835,2695.6,2695.2,7.42045]
[1727459414874,0.7835,2695.6,2695.2,3.71022]
[1727459415074,3.70926,2696.0,2695.5,3.70988]
[1727459415318,3.70926,2696.0,2695.5,3.7098]
[1727459415319,0.7835,2695.9,2695.5,3.7098]
[1727459415514,4.49284,2695.9,2695.5,3.7098]
[1727459416091,0.7835,2695.9,2695.5,3.7098]
[1727459416419,0.7835,2695.9,2695.7,3.7096]
[1727459416976,0.7835,2696.3,2695.8,3.70938]
[1727459417181,1.154388,2696.3,2695.9,3.70932]
[1727459418115,4.863178,2696.3,2695.7,3.7096]
[1727459418318,4.49229,2696.3,2695.8,3.70946]
[1727459418475,6.35690199,2696.7,2695.3,0.2512]
[1727459418476,0.7835,2696.2,2695.5,3.70979]
[1727459418674,3.70935,2695.9,2695.4,3.70996]
[1727459419113,3.70935,2695.9,2695.3,3.71005]
[1727459419283,3.70935,2695.9,2695.5,3.70986]
[1727459419694,4.49271,2696.0,2695.5,3.70986]
[1727459419884,4.49271,2696.0,2695.5,3.7098]
[1727459421619,0.7835,2696.0,2695.7,3.70959]
[1727459421779,0.7581,2696.2,2695.8,3.70942]
[1727459422405,0.7581,2696.2,2695.7,4.080549]
[1727459422406,4.46708,2696.2,2695.7,4.080549]
[1727459422630,0.7581,2696.2,2695.7,4.080479]
[1727459422776,0.7581,2696.2,2695.9,3.70931]
[1727459423618,0.7581,2696.2,2695.8,3.70946]
[1727459423983,0.7581,2696.2,2695.9,3.70932]
[1727459424317,0.7581,2696.2,2695.8,3.70947]
[1727459424522,0.7581,2696.2,2695.9,3.70929]
[1727459424832,0.7581,2696.2,2695.8,3.70937]
[1727459425389,4.46703,2696.2,2695.8,3.70937]
[1727459425816,4.46703,2696.2,2695.7,3.7096]
[1727459426118,4.46703,2696.2,2695.8,3.70945]
[1727459427585,0.7581,2696.2,2695.8,7.4189]
[1727459427885,0.7581,2696.2,2696.1,3.70906]
[1727459428085,3.35690199,2697.5,2696.2,3.70884]
[1727459428314,3.70712,2697.6,2696.2,7.4177]
[1727459428315,4.52261,2696.7,2696.2,7.4177]
[1727459428519,4.52261,2696.7,2696.2,3.70884]
[1727459428693,4.52261,2696.7,2696.2,3.70883]
[1727459429109,8.23096,2696.7,2696.2,3.70883]
[1727459429305,4.52261,2696.7,2696.2,3.70883]
[1727459429521,3.70857,2696.5,2696.0,3.70911]
[1727459430421,3.70857,2696.5,2696.0,3.7091]
[1727459430729,4.52301,2696.4,2695.9,3.70925]
[1727459430919,0.8143,2696.4,2696.0,3.70917]
[1727459431119,0.8143,2696.4,2696.1,3.70899]
[1727459431639,0.8143,2696.4,2696.2,3.70884]
[1727459432000,0.8143,2696.4,2696.3,0.06552125]
[1727459432199,0.8289,2696.7,2696.3,3.70878]
[1727459432424,0.8289,2696.7,2696.4,0.06571251]
[1727459432829,4.53713,2696.7,2696.4,0.06571251]
[1727459433129,3.70761,2697.2,2696.7,3.70817]
[1727459433501,7.41527,2697.2,2696.8,0.06517828]
[1727459433839,3.70761,2697.2,2696.7,3.70817]
[1727459434001,3.7077,2697.1,2696.8,0.06517828]
[1727459434200,0.8289,2697.3,2696.7,3.70817]
[1727459434201,4.53643,2697.3,2696.7,3.70817]
[1727459434408,3.70757,2697.2,2696.8,0.06517828]
[1727459434701,4.161213,2697.2,2696.6,3.70836]
[1727459434900,4.161213,2697.2,2696.9,0.06513995]
[1727459435096,0.4990113,2697.1,2696.7,3.70815]
[1727459435297,4.53631,2697.3,2697.0,0.06510163]
[1727459435642,4.53631,2697.3,2696.8,3.70807]
[1727459435643,4.53631,2697.3,2697.1,0.06506331]
[1727459435811,4.53631,2697.3,2696.7,3.70815]
[1727459435812,4.531907,2697.2,2696.7,3.70815]
[1727459436015,3.70754,2697.2,2696.8,0.06517828]
[1727459436315,0.8289,2697.3,2696.7,3.70813]
[1727459436510,0.8289,2697.3,2696.9,3.77308995]
[1727459436694,3.70755,2697.2,2696.8,0.06517828]
[1727459436911,4.531948,2697.2,2697.0,0.06510163]
[1727459437113,4.531948,2697.2,2696.7,3.70813]
[1727459437114,4.531948,2697.2,2696.9,0.06513995]
[1727459437324,0.824398,2697.2,2697.1,0.06506331]
[1727459437638,3.70754,2697.2,2697.1,0.06506331]
[1727459437813,3.70754,2697.2,2696.7,3.70813]
[1727459438008,3.70754,2697.2,2696.8,0.06517828]
[1727459438202,3.70768,2697.1,2696.5,3.70843]
[1727459438442,4.46093,2697.0,2696.6,0.06525493]
[1727459438915,8.16888,2697.0,2696.6,0.06525493]
[1727459439123,3.70799,2696.9,2696.6,0.06525493]
[1727459439438,4.46093,2697.0,2696.2,3.70882]
[1727459439439,3.7081,2696.8,2696.7,0.0652166]
[1727459439743,3.7081,2696.8,2696.3,3.70877]
[1727459439939,3.7081,2696.8,2696.7,0.0652166]
[1727459440246,0.7638,2696.6,2696.2,3.70882]
[1727459440446,0.7638,2696.6,2696.1,3.70897]
[1727459440737,0.7638,2696.6,2696.2,3.70892]
[1727459441226,3.70804,2696.9,2696.6,3.7083]
[1727459441227,0.7788,2696.9,2696.6,3.7083]
[1727459441540,0.7788,2696.9,2696.6,3.70835]
[1727459442005,3.7077,2697.1,2696.6,3.70835]
[1727459442199,4.449219,2697.1,2696.6,3.70835]
[1727459443028,8.156989,2697.1,2696.6,3.70835]
[1727459443209,4.449219,2697.1,2696.6,3.70835]
[1727459443942,0.741519,2697.1,2696.6,3.70835]
[1727459444104,0.741519,2697.1,2696.7,3.7082]
[1727459444541,0.741519,2697.1,2696.7,0.2512]
[1727459445149,0.7788,2697.2,2696.8,3.70806]
[1727459445716,4.885642,2697.5,2697.0,3.70781]
[1727459446122,8.592852,2697.5,2697.0,3.70781]
[1727459446308,8.592842,2697.5,2697.0,3.70781]
[1727459446637,4.885622,2697.5,2697.0,3.70775]
[1727459446944,4.51491,2697.5,2697.0,3.70775]
[1727459447146,4.51491,2697.5,2697.1,3.70758]
[1727459447147,0.8077,2697.5,2697.1,3.70758]
[1727459447319,3.70692,2697.7,2697.2,0.2512]
[1727459447917,3.70692,2697.7,2697.1,3.70758]
[1727459447918,3.707,2697.6,2697.1,3.70758]
[1727459448335,0.7627,2697.6,2697.1,3.70758]
[1727459448518,4.4697,2697.6,2697.2,0.06449305]
[1727459449364,3.70714,2697.5,2697.2,0.06449305]
[1727459449515,3.70741,2697.3,2697.2,0.06449305]
[1727459449861,3.70741,2697.3,2697.2,0.06438669]
[1727459450146,3.70729,2697.4,2696.9,3.70795]
[1727459450345,0.829,2697.6,2697.2,0.06438669]
[1727459450514,4.53611,2697.6,2697.1,3.70767]
[1727459450713,4.53611,2697.6,2697.3,0.06437637]
[1727459450918,4.53611,2697.6,2697.2,0.06441468]
[1727459451115,4.53611,2697.6,2697.4,0.06433806]
[1727459451431,1.21669211,2698.0,2697.5,0.06429975]
[1727459451638,1.21669211,2698.0,2697.5,0.31549975]
[1727459451807,1.21669211,2698.0,2697.5,4.02262975]
[1727459451808,3.70661,2697.9,2697.5,4.02262975]
[1727459452013,0.829,2698.0,2697.5,4.02262975]
[1727459452014,0.829,2698.0,2697.5,0.06429975]
[1727459452242,0.38800452,2699.0,2697.2,3.60810199]